Department Family,Entity,Pay date,Expense Type(T),Expense Area(T),Supplier(T),Transaction Number,Amount,Description
NS&I,NS&I,22/11/2023,Unitary fee - Outsource partner,Commercial and Legal,Atos IT Services UK Ltd,4024836," 5,671,960.45 ",Unitary service charge - November 2023
NS&I,NS&I,22/11/2023,Demand-linked costs - Outsource partner,Delivery & Monitoring,Atos IT Services UK Ltd,4024839," 3,684,660.00 ",Demand link service charge - October 2023
NS&I,NS&I,15/11/2023,Unitary fee - Outsource partner,B2B Government Payment Services,Atos IT Services UK Ltd,4024767," 1,464,751.45 ",Tax-free childcare service charges - November 2023
NS&I,NS&I,15/11/2023,Unitary fee - Outsource partner,B2B Government Payment Services,Atos IT Services UK Ltd,4024766," 721,638.14 ",Help to save service charges - November 2023
NS&I,NS&I,15/11/2023,Professional services - Other,Rainbow,IBM United Kingdom Ltd,4024813," 463,238.57 ",IT service charges October 2023
NS&I,NS&I,22/11/2023,Unitary fee - Outsource partner,B2B Government Payment Services,Atos IT Services UK Ltd,4024790," 380,522.80 ",Help to buy service charges November 2023
NS&I,NS&I,15/11/2023,Unitary fee - Outsource partner,B2B Government Payment Services,Atos IT Services UK Ltd,4024768," 301,889.86 ",30 Hours service charges - November 2023
NS&I,NS&I,15/11/2023,Unitary fee - Outsource partner,B2B Government Payment Services,Atos IT Services UK Ltd,4024741," 294,543.25 ",Tax-free childcare service charges - September 2023
NS&I,NS&I,22/11/2023,Professional services - Other,Rainbow,Actica Consulting Ltd,4024829," 290,335.20 ",Strategic Business Design support
NS&I,NS&I,01/11/2023,Consultancy services,Rainbow,PA Consulting Services Ltd,4024637," 281,220.00 ",Strategic business advice and support
NS&I,NS&I,01/11/2023,Professional services - Other,Rainbow,Actica Consulting Ltd,4024638," 277,434.30 ",Strategic Business Design support
NS&I,NS&I,01/11/2023,Advertising and production,Marketing Communications,Manning Gottlieb OMD,4024679," 249,545.87 ",Cost of Marketing Campaigns
NS&I,NS&I,15/11/2023,Unitary fee - Outsource partner,B2B Government Payment Services,Atos IT Services UK Ltd,4024754," 209,930.00 ",Help to save service charges - September 2023
NS&I,NS&I,01/11/2023,Project costs - Outsource partner,Programme Delivery,Atos IT Services UK Ltd,4024602," 207,342.00 ",Improving customer communication channels
NS&I,NS&I,15/11/2023,Professional services - Other,Rainbow,Capgemini UK plc (SIAM Partner),4024817," 202,710.96 ",Service Integration and Management  Partner support 
NS&I,NS&I,22/11/2023,Professional services - Other,Information & Technology,Capgemini Financial Services UK Ltd (IT Partner),4024820," 196,089.00 ",IT delivery partner support
NS&I,NS&I,22/11/2023,Advertising and production,Marketing Communications,Manning Gottlieb OMD,4024807," 183,796.88 ",Cost of Marketing Campaigns
NS&I,NS&I,08/11/2023,Professional services - Legal,Rainbow,Bevan Brittan LLP,4024740," 180,000.00 ",Legal Services October 2023
NS&I,NS&I,15/11/2023,Unitary fee - Outsource partner,B2B Government Payment Services,Atos IT Services UK Ltd,4024789," 139,224.59 ",Court Funds Office Service Charges October 2023
NS&I,NS&I,15/11/2023,Unitary fee - Outsource partner,B2B Government Payment Services,Atos IT Services UK Ltd,4024751," 136,214.00 ",Tax-free childcare service charges - September 2023
NS&I,NS&I,15/11/2023,Unitary fee - Outsource partner,B2B Government Payment Services,Atos IT Services UK Ltd,4024750," 121,339.26 ",Help to save service charges - September 2023
NS&I,NS&I,08/11/2023,Maintenance and running costs - Outsource partner,Change Delivery,Atos IT Services UK Ltd,4024737," 100,000.00 ",Programme management cost October 2023
NS&I,NS&I,15/11/2023,Maintenance and running costs - Outsource partner,Rainbow,Atos IT Services UK Ltd,4024760," 99,911.00 ",Test environment maintenance costs
NS&I,NS&I,08/11/2023,Maintenance and running costs - Outsource partner,Business Insight,Atos IT Services UK Ltd,4024713," 99,675.00 ",Data warehouse development work
NS&I,NS&I,30/11/2023,Maintenance and running costs - Outsource partner,Business Insight,Atos IT Services UK Ltd,4024902," 99,675.00 ",Data warehouse development work
NS&I,NS&I,15/11/2023,Unitary fee - Outsource partner,B2B Government Payment Services,Atos IT Services UK Ltd,4024752," 98,721.69 ",Tax-free childcare service charges - September 2023
NS&I,NS&I,15/11/2023,Unitary fee - Outsource partner,B2B Government Payment Services,Atos IT Services UK Ltd,4024753," 98,721.69 ",30 Hours service charges - September 2023
NS&I,NS&I,15/11/2023,Unitary fee - Outsource partner,B2B Government Payment Services,Atos IT Services UK Ltd,4024784," 93,835.13 ",Tax-free childcare service charges - September 2023
NS&I,NS&I,28/11/2023,Advertising and production,Marketing Communications,Manning Gottlieb OMD,4024849," 80,257.51 ",Cost of marketing campaigns
NS&I,NS&I,01/11/2023,Project costs - Outsource partner,Programme Delivery,Atos IT Services UK Ltd,4024610," 74,480.00 ",Updating customer experience
NS&I,NS&I,30/11/2023,Maintenance and running costs - Outsource partner,Information & Technology,Atos IT Services UK Ltd,4024897," 68,032.00 ",Delivering IT orchestration improvements October 2023
NS&I,NS&I,01/11/2023,Advertising and production,Marketing Communications,Manning Gottlieb OMD,4024672," 64,011.72 ",Cost of marketing campaigns
NS&I,NS&I,15/11/2023,Unitary fee - Outsource partner,B2B Government Payment Services,Atos IT Services UK Ltd,4024749," 57,346.45 ",Tax-free childcare service charges - September 2023
NS&I,NS&I,08/11/2023,Maintenance and running costs - Outsource partner,Information & Technology,Atos IT Services UK Ltd,4024690," 50,335.00 ",Delivering IT orchestration improvements September 2023
NS&I,NS&I,01/11/2023,Project costs - Outsource partner,Programme Delivery,Atos IT Services UK Ltd,4024601," 50,060.00 ",Corporate system improvements
NS&I,NS&I,30/11/2023,Maintenance and running costs - Outsource partner,Delivery & Monitoring,Atos IT Services UK Ltd,4024896," 48,818.00 ",Green Savings Bond Service Charges
NS&I,NS&I,28/11/2023,Project costs - Outsource partner,Programme Delivery,Atos IT Services UK Ltd,4024889," 48,075.00 ",Corporate system improvements
NS&I,NS&I,08/11/2023,Professional services - Other,Rainbow,Bloom Procurement Services Limited,4024721," 43,560.00 ",Enhancing delivery channels
NS&I,NS&I,01/11/2023,Project costs - Outsource partner,Centralised Budgets - BD&T,Atos IT Services UK Ltd,4024562," 34,000.00 ",Customer journey improvements
NS&I,NS&I,08/11/2023,Professional services - Other,Complaint's Management,Financial Ombudsman Services,4024722," 31,500.00 ",Case Fee Charges November 2023
NS&I,NS&I,01/11/2023,Professional services - Projects,Programme Delivery,Agilisys Limited,4024658," 30,000.00 ",Corporate system improvements
NS&I,NS&I,08/11/2023,Project costs - Outsource partner,Programme Delivery,Atos IT Services UK Ltd,4024708," 29,577.00 ",Product enhancement
NS&I,NS&I,15/11/2023,Maintenance and running costs - Outsource partner,Information & Technology,Atos IT Services UK Ltd,4024771," 29,312.00 ",FA portal website service costs
NS&I,NS&I,01/11/2023,Demand-linked costs - Outsource partner,Delivery & Monitoring,Atos IT Services UK Ltd,4024621," 29,013.00 ",Demand link service charge - September 2023
NS&I,NS&I,28/11/2023,Demand-linked costs - Outsource partner,Delivery & Monitoring,Atos IT Services UK Ltd,4024860," 29,013.00 ",Demand link service charge - October 2023
NS&I,NS&I,28/11/2023,Project costs - Outsource partner,Programme Delivery,Atos IT Services UK Ltd,4024887," 28,866.00 ",Data maintenance work
NS&I,NS&I,08/11/2023,Professional services - Legal,Rainbow,Cabinet Office (Shared Services),4024724," 27,522.00 ",Strategic business advice and support
NS&I,NS&I,15/11/2023,Unitary fee - Outsource partner,B2B Government Payment Services,Atos IT Services UK Ltd,4024747," 26,878.28 ",Help to save service charges - September 2023
NS&I,NS&I,15/11/2023,Market research,Market Intelligence & Research,Discovery Research Ltd.,4024805," 26,760.00 ",Qualitative & quantitative research
NS&I,NS&I,15/11/2023,Unitary fee - Outsource partner,B2B Government Payment Services,Atos IT Services UK Ltd,4024804," 25,459.37 ",Tax-free childcare service charges - September 2023
